fUSD/lending_fUSD_20250812
["ID","MTS","AMOUNT","RATE_DAILY","PERIOD"]
[378786302,1755015062486,-400.0,0.00041369,30]
[378786303,1755015062495,-400.0,0.00041369,30]
[378786304,1755015062504,-1009.01,0.00041369,30]
[378786305,1755015062514,-927.49,0.00041369,30]
[378786306,1755015062524,-400.0,0.00041369,30]
[378786307,1755015062533,-400.0,0.00041369,30]
[378786308,1755015062542,-544.26,0.00041369,30]
[378786309,1755015062552,-400.0,0.00041369,30]
[378786310,1755015062561,-400.0,0.00041369,30]
[378786311,1755015062574,-400.0,0.00041369,30]
[378786312,1755015062585,-400.0,0.00041369,30]
[378786313,1755015062595,-557.51,0.00041369,30]
[378786314,1755015062604,-400.0,0.00041369,30]
[378786315,1755015062614,-400.0,0.00041369,30]
[378786316,1755015062623,-400.0,0.00041369,30]
[378786317,1755015062632,-400.0,0.00041369,30]
[378786318,1755015062641,-3615.09,0.00041369,30]
[378786319,1755015062651,-524.24,0.00041369,30]
[378786320,1755015062660,-400.0,0.00041369,30]
[378786321,1755015062669,-400.0,0.00041369,30]
[378786322,1755015062679,-400.0,0.00041369,30]
[378786323,1755015062688,-400.0,0.00041369,30]
[378786324,1755015062698,-400.0,0.00041369,30]
[378786325,1755015062708,-428.11,0.00041369,30]
[378786326,1755015062717,-400.0,0.00041369,30]
[378786327,1755015062726,-400.0,0.00041369,30]
[378786328,1755015062736,-400.0,0.00041369,30]
[378786329,1755015062745,-400.0,0.00041369,30]
[378786330,1755015062754,-463.02,0.00041369,30]
[378786331,1755015062763,-400.0,0.00041369,30]
[378786332,1755015062772,-1118.56,0.00041369,30]
[378786333,1755015062782,-400.0,0.00041369,30]
[378786334,1755015062792,-400.0,0.00041369,30]
[378786335,1755015062801,-400.0,0.00041369,30]
[378786336,1755015062810,-658.09,0.00041369,30]
[378786337,1755015062821,-433.67,0.00041369,30]
[378786338,1755015062831,-764.7,0.00041369,30]
[378786339,1755015062840,-465.0,0.00041369,30]
[378786340,1755015062850,-400.0,0.00041369,30]
[378786341,1755015062860,-400.0,0.00041369,30]
[378786342,1755015062870,-400.0,0.00041369,30]
[378786343,1755015062880,-400.0,0.00041369,30]
[378786344,1755015062889,-400.0,0.00041369,30]
[378786345,1755015062899,-614.12,0.00041369,30]
[378786346,1755015062912,-690.43,0.00041369,30]
[378786347,1755015062922,-498.89532401,0.00041369,30]
[378786348,1755015062931,-906.85,0.00041369,30]
[378786349,1755015062940,-400.0,0.00041369,30]
[378786350,1755015062950,-1172.1,0.00041369,30]
[378786351,1755015062960,-578.19,0.00041369,30]
[378786352,1755015062969,-680.37,0.00041369,30]
[378786353,1755015062979,-421.35,0.00041369,30]
[378786354,1755015062988,-400.0,0.00041369,30]
[378786355,1755015062997,-560.01,0.00041369,30]
[378786356,1755015063007,-454.87,0.00041369,30]
[378786357,1755015063016,-564.64,0.00041369,30]
[378786358,1755015063026,-1101.94,0.00041369,30]
[378786359,1755015063036,-400.0,0.00041369,30]
[378786360,1755015063046,-708.71,0.00041369,30]
[378786361,1755015063057,-828.15,0.00041369,30]
[378786362,1755015063068,-400.0,0.00041369,30]
[378786363,1755015063082,-536.15,0.00041369,30]
[378786364,1755015063092,-400.0,0.00041369,30]
[378786365,1755015063102,-616.78,0.00041369,30]
[378786366,1755015063112,-400.0,0.00041369,30]
[378786367,1755015063122,-1000.0,0.00041369,30]
[378786368,1755015063131,-400.0,0.00041369,30]
[378786369,1755015063141,-400.0,0.00041369,30]
[378786370,1755015063150,-876.8,0.00041369,30]
[378786371,1755015063161,-968.65,0.00041369,30]
[378786372,1755015063171,-1059.66,0.00041369,30]
[378786373,1755015063181,-738.68,0.00041369,30]
[378786374,1755015063191,-400.0,0.00041369,30]
[378786375,1755015063201,-400.0,0.00041369,30]
[378786376,1755015063212,-400.0,0.00041369,30]
[378786377,1755015063222,-400.0,0.00041369,30]
[378786378,1755015063232,-675.88,0.00041369,30]
[378786379,1755015063243,-400.0,0.00041369,30]
[378786380,1755015063253,-400.0,0.00041369,30]
[378786381,1755015063263,-400.0,0.00041369,30]
[378786382,1755015063272,-400.0,0.00041369,30]
[378786383,1755015063282,-400.0,0.00041369,30]
[378786384,1755015063293,-400.0,0.00041369,30]
[378786385,1755015063303,-400.0,0.00041369,30]
[378786386,1755015063312,-477.89241747,0.00041369,30]
[378786387,1755015063325,-400.0,0.00041369,30]
[378786388,1755015063335,-400.0,0.00041369,30]
[378786389,1755015063345,-400.0,0.00041369,30]
[378786390,1755015063355,-400.0,0.00041369,30]
[378786391,1755015063365,-1878.98,0.00041369,30]
[378786392,1755015063376,-400.0,0.00041369,30]
[378786393,1755015063386,-400.0,0.00041369,30]
[378786394,1755015063396,-408.11,0.00041369,30]
[378786395,1755015063407,-581.93,0.00041369,30]
[378786396,1755015063416,-400.0,0.00041369,30]
[378786397,1755015063426,-400.0,0.00041369,30]
[378786398,1755015063436,-590.05,0.00041369,30]
[378786399,1755015063446,-448.53,0.00041369,30]
[378786400,1755015063456,-687.85,0.00041369,30]
[378786401,1755015063466,-400.0,0.00041369,30]
[378786402,1755015063476,-400.0,0.00041369,30]
[378786403,1755015063486,-470.64,0.00041369,30]
[378786404,1755015063495,-400.0,0.00041369,30]
[378786405,1755015063505,-484.87,0.00041369,30]
[378786406,1755015063515,-400.0,0.00041369,30]
[378786407,1755015063525,-787.07,0.00041369,30]
[378786408,1755015063535,-239.14559943,0.00041369,30]
[378786409,1755015063545,-400.0,0.00041369,30]
[378786410,1755015063555,-400.0,0.00041369,30]
[378786411,1755015063565,-400.0,0.00041369,30]
[378786412,1755015063577,-579.43,0.00041369,30]
[378786413,1755015063587,-400.0,0.00041369,30]
[378786414,1755015063597,-400.0,0.00041369,30]
[378786415,1755015063608,-400.0,0.00041369,30]
[378786416,1755015063619,-880.45,0.00041369,30]
[378786417,1755015063629,-400.0,0.00041369,30]
[378786418,1755015063639,-400.0,0.00041369,30]
[378786419,1755015063648,-742.65,0.00041369,30]
[378786420,1755015063659,-666.51,0.00041369,30]
[378786421,1755015063669,-400.0,0.00041369,30]
[378786422,1755015063679,-400.0,0.00041369,30]
[378786423,1755015063689,-937.77,0.00041369,30]
[378786424,1755015063699,-400.0,0.00041369,30]
[378786425,1755015063708,-400.0,0.00041369,30]
[378786426,1755015063718,-947.81,0.00041369,30]
[378786427,1755015063728,-400.0,0.00041369,30]
[378786428,1755015063738,-400.0,0.00041369,30]
[378786429,1755015063748,-400.0,0.00041369,30]
[378786430,1755015063757,-2162.36,0.00041369,30]
[378786431,1755015063767,-1399.37,0.00041369,30]
[378786432,1755015063776,-526.74,0.00041369,30]
[378786433,1755015063786,-400.0,0.00041369,30]
[378786434,1755015063796,-1000.0,0.00041369,2]
[378786435,1755015063805,-400.0,0.00041369,30]
[378786436,1755015063815,-400.10686,0.00041369,30]
[378786437,1755015063827,-400.0,0.00041369,30]
[378786438,1755015063836,-757.53,0.00041369,30]
[378786439,1755015063980,-400.0,0.00041369,30]
[378786440,1755015063991,-400.0,0.00041369,30]
[378786441,1755015064002,-400.0,0.00041369,30]
[378786442,1755015064011,-442.5,0.00041369,30]
[378786443,1755015064020,-400.0,0.00041369,30]
[378786444,1755015064030,-400.0,0.00041369,30]
[378786445,1755015064040,-637.58,0.00041369,30]
[378786446,1755015064050,-892.5,0.00041369,30]
[378786447,1755015064059,-151.0,0.00041369,30]
[378786448,1755015064068,-400.0,0.00041369,30]
[378786449,1755015064080,-524.02,0.00041369,30]
[378786450,1755015064090,-400.0,0.00041369,30]
[378786451,1755015064099,-400.0,0.00041369,30]
[378786452,1755015064111,-667.79,0.00041369,30]
[378786453,1755015064120,-400.0,0.00041369,30]
[378786454,1755015064130,-403.57,0.00041369,30]
[378786455,1755015064139,-1098.58,0.00041369,30]
[378786456,1755015064149,-896.78,0.00041369,30]
[378786457,1755015064158,-512.16,0.00041369,30]
[378786458,1755015064168,-461.96,0.00041369,30]
[378786459,1755015064178,-151.0,0.00041369,30]
[378786460,1755015064187,-400.0,0.00041369,30]
[378786461,1755015064197,-1110.39,0.00041369,30]
[378786462,1755015064207,-400.0,0.00041369,30]
[378786463,1755015064216,-400.0,0.00041369,30]
[378786464,1755015064226,-400.0,0.00041369,30]
[378786465,1755015064235,-400.0,0.00041369,30]
[378786466,1755015064245,-400.0,0.00041369,30]
[378786467,1755015064256,-1107.83,0.00041369,30]
[378786468,1755015064265,-400.0,0.00041369,30]
[378786469,1755015064275,-400.0,0.00041369,30]
[378786470,1755015064286,-400.0,0.00041369,30]
[378786471,1755015064296,-400.0,0.00041369,30]
[378786472,1755015064305,-475.09,0.00041369,30]
[378786473,1755015064315,-400.0,0.00041369,30]
[378786474,1755015064331,-400.0,0.00041369,30]
[378786475,1755015064341,-252.74095499,0.00041369,30]
[378786476,1755015064351,-449.72,0.00041369,30]
[378786477,1755015064361,-521.63,0.00041369,30]
[378786478,1755015064372,-400.0,0.00041369,30]
[378786479,1755015064383,-692.21,0.00041369,30]
[378786480,1755015064393,-853.21,0.00041369,14]
[378786481,1755015064403,-400.0,0.00041369,30]
[378786482,1755015064412,-1020.3,0.00041369,30]
[378786483,1755015064422,-391.87,0.00041369,30]
[378786484,1755015064431,-151.0,0.00041369,30]
[378786485,1755015064441,-400.0,0.00041369,30]
[378786486,1755015064450,-1546.42,0.00041369,30]
[378786487,1755015064459,-400.0,0.00041369,30]
[378786488,1755015064469,-400.0,0.00041369,30]
[378786489,1755015064478,-400.0,0.00041369,30]
[378786490,1755015064488,-821.97,0.00041369,30]
[378786491,1755015064498,-400.0,0.00041369,30]
[378786492,1755015064507,-400.0,0.00041369,30]
[378786493,1755015064517,-400.0,0.00041369,30]
[378786494,1755015064526,-1030.28,0.00041369,30]
[378786495,1755015064536,-401.86,0.00041369,30]
[378786496,1755015064546,-400.0,0.00041369,30]
[378786497,1755015064555,-400.0,0.00041369,30]
[378786498,1755015064565,-400.0,0.00041369,30]
[378786499,1755015064578,-824.77,0.00041369,30]
[378786500,1755015064588,-400.0,0.00041369,30]
[378786501,1755015064597,-400.0,0.00041369,30]
[378786502,1755015064607,-1000.27,0.00041369,30]
[378786503,1755015064617,-400.0,0.00041369,30]
[378786504,1755015064626,-400.0,0.00041369,30]
[378786505,1755015064635,-400.0,0.00041369,30]
[378786506,1755015064645,-557.64,0.00041369,30]
[378786507,1755015064655,-499.59,0.00041369,30]
[378786508,1755015064664,-400.0,0.00041369,30]
[378786509,1755015064673,-891.75,0.00041369,30]
[378786510,1755015064683,-400.0,0.00041369,30]
[378786511,1755015064693,-464.62,0.00041369,30]
[378786512,1755015064702,-400.0,0.00041369,30]
[378786513,1755015064711,-400.0,0.00041369,30]
[378786514,1755015064721,-400.0,0.00041369,30]
[378786515,1755015064730,-479.74,0.00041369,30]
[378786516,1755015064740,-400.0,0.00041369,30]
[378786517,1755015064750,-400.0,0.00041369,30]
[378786518,1755015064760,-533.55,0.00041369,30]
[378786519,1755015064770,-662.96,0.00041369,30]
[378786520,1755015064780,-744.81,0.00041369,30]
[378786521,1755015064789,-400.0,0.00041369,30]
[378786522,1755015064799,-151.0,0.00041369,30]
[378786523,1755015064809,-400.0,0.00041369,30]
[378786524,1755015064818,-396.86497307,0.00041369,30]
[378786525,1755015064832,-433.61,0.00041369,30]
[378786526,1755015064842,-423.2,0.00041369,30]
[378786527,1755015064851,-494.45,0.00041369,30]
[378786528,1755015064861,-400.0,0.00041369,30]
[378786529,1755015064871,-400.0,0.00041369,30]
[378786530,1755015064880,-400.0,0.00041369,30]
[378786531,1755015064890,-400.0,0.00041369,30]
[378786532,1755015064899,-400.0,0.00041369,30]
[378786533,1755015064909,-500.0,0.00041373,10]
[378786534,1755015064921,-500.0,0.00041373,10]
[378786535,1755015064930,-500.0,0.00041373,10]
[378786536,1755015064940,-573.1336826,0.00041373,10]
[378786537,1755015064951,-500.0,0.00041373,10]
[378786538,1755015064960,-500.0,0.00041373,10]
[378786539,1755015064970,-500.0,0.00041373,10]
[378786540,1755015064980,-150.0,0.00041377,2]
[378786541,1755015064991,-150.0,0.00041383,2]
[378786542,1755015065001,-150.0,0.00041391,2]
[378786543,1755015065010,-150.0,0.00041399,2]
[378786544,1755015065020,-175.78920431,0.000414,120]
[378786545,1755015065029,-150.0,0.00041413,2]
[378786546,1755015065039,-150.0,0.00041428,2]
[378786547,1755015065048,-150.0,0.00041433,2]
[378786548,1755015065057,-150.0,0.00041434,2]
[378786549,1755015065066,-150.0,0.00041455,2]
[378786550,1755015065079,-14565.7215381,0.0004149,3]
[378786551,1755015065089,-3061.30710462,0.000415,30]
[378786552,1755015065098,-10146.28930602,0.000415,5]
[378786553,1755015065107,-217.84,0.00041505,120]
[378786554,1755015065116,-3255.3256849,0.00041514,2]
[378786555,1755015065125,-1609.1184819,0.00041514,2]
[378786556,1755015065134,-1546.1817173,0.00041514,2]
[378786557,1755015065143,-227.08,0.00041517,14]
[378786558,1755015065152,-2439.7822791,0.00041518,15]
[378786559,1755015065162,-496.98670945,0.00041543,2]
[378786560,1755015065172,-150.0,0.00041583,2]
[378786561,1755015065181,-888.0,0.00041585,3]
[378786562,1755015065190,-888.0,0.00041595,3]
[378786563,1755015065200,-255.0,0.000416,120]
[378786564,1755015065209,-1776.0,0.00041601,3]
[378786565,1755015065218,-786.89905761,0.00041603,15]
[378786566,1755015065227,-1000.0,0.00041621,10]
[378786567,1755015065236,-150.0,0.00041625,2]
[378786568,1755015065245,-14565.7215381,0.00041632,3]
[378786569,1755015065255,-500.0,0.00041632,30]
[378786570,1755015065264,-1000.0,0.00041632,30]
[378786571,1755015065273,-300.0,0.00041642,30]
[378786572,1755015065282,-500.0,0.00041642,30]
[378786573,1755015065291,-500.0,0.00041642,30]
[378786574,1755015065300,-300.0,0.00041642,30]
[378786575,1755015065309,-151.0,0.00041642,30]
[378786576,1755015065318,-156.587,0.00041642,30]
[378786577,1755015065328,-162.380719,0.00041642,30]
[378786578,1755015065338,-168.3888056,0.00041642,30]
[378786579,1755015065347,-226.7789535,0.00041642,30]
[378786580,1755015065356,-174.61919141,0.00041642,30]
[378786581,1755015065366,-181.08010149,0.00041642,30]
[378786582,1755015065376,-187.78006525,0.00041642,30]
[378786583,1755015065385,-194.72792766,0.00041642,30]
[378786584,1755015065394,-201.93286099,0.00041642,30]
[378786585,1755015065403,-209.40437684,0.00041642,30]
[378786586,1755015065413,-217.15233878,0.00041642,30]
[378786587,1755015065423,-225.18697532,0.00041642,30]
[378786588,1755015065432,-200.0,0.00041642,30]
[378786589,1755015065443,-225.18697531,0.00041642,30]
[378786590,1755015065452,-200.0,0.00041642,30]
[378786591,1755015065461,-151.0,0.00041642,30]
[378786592,1755015065470,-150.0,0.00041642,120]
[378786593,1755015065479,-151.0,0.00041642,30]
[378786594,1755015065489,-150.0,0.00041642,2]
[378786595,1755015065498,-151.0,0.00041642,30]
[378786596,1755015065508,-151.0,0.00041642,30]
[378786597,1755015065517,-151.0,0.00041642,30]
[378786598,1755015065526,-151.0,0.00041642,30]
[378786599,1755015065536,-999.0,0.00041642,120]
[378786600,1755015065545,-151.0,0.00041642,30]
[378786601,1755015065554,-300.0,0.00041642,30]
[378786602,1755015065563,-1888.0,0.00041642,30]
[378786603,1755015065572,-151.0,0.00041642,30]
[378786604,1755015065582,-1957.856,0.00041642,30]
[378786605,1755015065591,-151.0,0.00041642,30]
[378786606,1755015065600,-2030.296672,0.00041642,30]
[378786607,1755015065609,-151.0,0.00041642,30]
[378786608,1755015065618,-2105.41764886,0.00041642,30]
[378786609,1755015065628,-151.0,0.00041642,30]
[378786610,1755015065637,-1429.04198709,0.00041642,30]
[378786611,1755015065646,-154.123665,0.00041642,30]
[378786612,1755015065656,-151.0,0.00041642,30]
[378786613,1755015065665,-151.0,0.00041642,30]
[378786614,1755015065675,-152.68018984,0.00041642,30]
[378786615,1755015065685,-500.0,0.00041642,30]
[378786616,1755015065694,-1000.0,0.00041642,30]
[378786617,1755015065704,-174.61919142,0.00041642,30]
[378786618,1755015065713,-311.89661038,0.00041642,30]
[378786619,1755015065722,-1000.0,0.00041642,30]
[378786620,1755015065731,-1037.0,0.00041642,30]
[378786621,1755015065740,-1075.369,0.00041642,30]
[378786622,1755015065750,-151.0,0.00041642,30]
[378786623,1755015065759,-151.0,0.00041642,30]
[378786624,1755015065768,-151.0,0.00041642,30]
[378786625,1755015065776,-500.0,0.00041642,30]
[378786626,1755015065785,-151.0,0.00041642,30]
[378786627,1755015065794,-200.0,0.00041642,30]
[378786628,1755015065803,-500.0,0.00041642,30]
[378786629,1755015065812,-500.0,0.00041642,30]
[378786630,1755015065822,-160.0,0.00041642,30]
[378786631,1755015065831,-207.4,0.00041642,30]
[378786632,1755015065840,-250.0,0.00041642,30]
[378786633,1755015065849,-500.0,0.00041642,30]
[378786634,1755015065859,-215.0738,0.00041642,30]
[378786635,1755015065869,-500.0,0.00041642,30]
[378786636,1755015065878,-160.0,0.00041642,30]
[378786637,1755015065888,-223.0315306,0.00041642,30]
[378786638,1755015065899,-500.0,0.00041642,30]
[378786639,1755015065911,-160.0,0.00041642,30]
[378786640,1755015065923,-1115.157653,0.00041642,30]
[378786641,1755015065935,-231.28369723,0.00041642,30]
[378786642,1755015065944,-500.0,0.00041642,30]
[378786643,1755015065954,-648.66326468,0.00041642,30]
[378786644,1755015065963,-151.0,0.00041642,30]
[378786645,1755015065973,-239.84119403,0.00041642,30]
[378786646,1755015065983,-500.0,0.00041642,30]
[378786647,1755015065993,-151.0,0.00041642,30]
[378786648,1755015066002,-248.71531821,0.00041642,30]
[378786649,1755015066011,-500.0,0.00041642,30]
[378786650,1755015066020,-151.0,0.00041642,30]
[378786651,1755015066029,-257.91778498,0.00041642,30]
[378786652,1755015066039,-500.0,0.00041642,30]
[378786653,1755015066048,-151.0,0.00041642,30]
[378786654,1755015066058,-267.46074303,0.00041642,30]
[378786655,1755015066067,-262.51541034,0.00041642,30]
[378786656,1755015066078,-500.0,0.00041642,30]
[378786657,1755015066088,-151.0,0.00041642,30]
[378786658,1755015066097,-277.35679052,0.00041642,30]
[378786659,1755015066230,-300.04586995,0.00041642,30]
[378786660,1755015066240,-151.0,0.00041642,30]
[378786661,1755015066250,-287.61899177,0.00041642,30]
[378786662,1755015066259,-151.0,0.00041642,30]
[378786663,1755015066271,-298.26089446,0.00041642,30]
[378786664,1755015066281,-200.0,0.00041642,30]
[378786665,1755015066290,-1000.0,0.00041642,30]
[378786666,1755015066300,-151.0,0.00041642,30]
[378786667,1755015066310,-309.29654756,0.00041642,30]
[378786668,1755015066320,-200.0,0.00041642,30]
[378786669,1755015066330,-250.0,0.00041642,30]
[378786670,1755015066339,-320.74051982,0.00041642,30]
[378786671,1755015066349,-200.0,0.00041642,30]
[378786672,1755015066358,-250.0,0.00041642,30]
[378786673,1755015066368,-332.60791905,0.00041642,30]
[378786674,1755015066378,-200.0,0.00041642,30]
[378786675,1755015066387,-250.0,0.00041642,30]
[378786676,1755015066397,-344.91441206,0.00041642,30]
[378786677,1755015066406,-200.0,0.00041642,30]
[378786678,1755015066415,-357.6762453,0.00041642,30]
[378786679,1755015066425,-200.0,0.00041642,30]
[378786680,1755015066434,-152.86643145,0.00041642,30]
[378786681,1755015066444,-250.0,0.00041642,30]
[378786682,1755015066453,-300.0,0.00041642,30]
[378786683,1755015066463,-200.0,0.00041642,30]
[378786684,1755015066472,-600.0,0.00041642,30]
[378786685,1755015066482,-370.91026638,0.00041642,30]
[378786686,1755015066492,-153.0,0.00041642,30]
[378786687,1755015066503,-250.0,0.00041642,30]
[378786688,1755015066512,-600.0,0.00041642,30]
[378786689,1755015066522,-250.0,0.00041642,30]
[378786690,1755015066531,-384.63394623,0.00041642,30]
[378786691,1755015066541,-600.0,0.00041642,30]
[378786692,1755015066551,-250.0,0.00041642,30]
[378786693,1755015066560,-398.86540225,0.00041642,30]
[378786694,1755015066569,-600.0,0.00041642,30]
[378786695,1755015066579,-250.0,0.00041642,30]
[378786696,1755015066589,-250.0,0.00041642,30]
[378786697,1755015066598,-500.0,0.00041642,30]
[378786698,1755015066608,-500.0,0.00041642,30]
[378786699,1755015066617,-500.0,0.00041642,30]
[378786700,1755015066626,-500.0,0.00041642,30]
[378786701,1755015066635,-151.62252433,0.00041642,30]
[378786702,1755015066645,-500.0,0.00041642,30]
[378786703,1755015066654,-600.0,0.00041642,30]
[378786704,1755015066663,-152.52655812,0.00041642,30]
[378786705,1755015066672,-600.0,0.00041642,30]
[378786706,1755015066682,-500.0,0.00041642,30]
[378786707,1755015066692,-300.0,0.00041642,30]
[378786708,1755015066702,-448.1166604,0.00041642,30]
[378786709,1755015066713,-1000.0,0.00041642,30]
[378786710,1755015066723,-1000.0,0.00041642,30]
[378786711,1755015066733,-1000.0,0.00041642,30]
[378786712,1755015066743,-500.0,0.00041642,30]
[378786713,1755015066753,-500.0,0.00041642,30]
[378786714,1755015066763,-1000.0,0.00041642,30]
[378786715,1755015066772,-500.0,0.00041642,30]
[378786716,1755015066782,-1000.0,0.00041642,30]
[378786717,1755015066791,-500.0,0.00041642,30]
[378786718,1755015066800,-1000.0,0.00041642,30]
[378786719,1755015066810,-500.0,0.00041642,30]
[378786720,1755015066819,-1000.0,0.00041642,30]
[378786721,1755015066831,-500.0,0.00041642,30]
[378786722,1755015066841,-600.0,0.00041642,30]
[378786723,1755015066850,-182104.4158564,0.00041643,31]
[378786724,1755015068286,-424.89,0.00041095,30]
[378786725,1755015068296,-350.33251,0.0004123,8]
[378786726,1755015068305,-350.33252,0.0004134,8]
[378786727,1755015068314,-151.0,0.00041369,30]
[378786728,1755015068323,-424.89,0.00041369,30]
[378786729,1755015068332,-151.0,0.00041369,30]
[378786730,1755015068342,-350.33252,0.0004147,9]
[378786731,1755015068351,-350.33252,0.0004159,10]
[378786732,1755015068360,-195319.16191853,0.00041643,31]
[378786733,1755015068369,-807.0592978,0.00041643,61]
[378786734,1755015068379,-400.0,0.00041643,30]
[378786735,1755015068388,-500.0,0.00041643,30]
[378786736,1755015068398,-400.0,0.00041643,30]
[378786737,1755015068407,-400.0,0.00041643,30]
[378786738,1755015068416,-400.0,0.00041643,30]
[378786739,1755015068425,-400.0,0.00041643,30]
[378786740,1755015068434,-400.0,0.00041643,30]
[378786741,1755015068444,-400.0,0.00041643,30]
[378786742,1755015068453,-400.0,0.00041643,30]
[378786743,1755015068462,-400.0,0.00041643,30]
[378786744,1755015068471,-400.0,0.00041643,30]
[378786745,1755015068481,-400.0,0.00041643,30]
[378786746,1755015068490,-400.0,0.00041643,30]
[378786747,1755015068499,-400.0,0.00041643,30]
[378786748,1755015068508,-400.0,0.00041643,30]
[378786749,1755015068518,-400.0,0.00041643,30]
[378786750,1755015068527,-400.0,0.00041643,30]
[378786751,1755015068536,-29357.3219102,0.00041643,2]
[378786752,1755015068546,-161.58,0.00041643,30]
[378786753,1755015068555,-400.0,0.00041643,30]
[378786754,1755015068565,-400.0,0.00041643,30]
[378786755,1755015068576,-400.0,0.00041643,30]
[378786756,1755015068585,-303.17,0.00041643,30]
[378786757,1755015068595,-399.86,0.00041643,30]
[378786758,1755015068604,-400.0,0.00041643,30]
[378786759,1755015068613,-400.0,0.00041643,30]
[378786760,1755015068623,-400.0,0.00041643,30]
[378786761,1755015068632,-400.0,0.00041643,30]
[378786762,1755015068641,-400.0,0.00041643,30]
[378786763,1755015068651,-400.0,0.00041643,30]
[378786764,1755015068660,-400.0,0.00041643,30]
[378786765,1755015068670,-400.0,0.00041643,30]
[378786766,1755015068679,-400.0,0.00041643,30]
[378786767,1755015068688,-400.0,0.00041643,30]
[378786768,1755015068698,-400.0,0.00041643,30]
[378786769,1755015068707,-4884.3619485,0.00041643,2]
[378786770,1755015068717,-400.0,0.00041643,30]
[378786771,1755015068726,-400.0,0.00041643,30]
[378786772,1755015068735,-400.0,0.00041643,30]
[378786773,1755015068745,-400.0,0.00041643,30]
[378786774,1755015068755,-400.0,0.00041643,30]
[378786775,1755015068764,-400.0,0.00041643,30]
[378786776,1755015068773,-400.0,0.00041643,30]
[378786777,1755015068782,-400.0,0.00041643,30]
[378786778,1755015068793,-400.0,0.00041643,30]
[378786779,1755015068805,-400.0,0.00041643,30]
[378786780,1755015068817,-400.0,0.00041643,30]
[378786781,1755015068830,-400.0,0.00041643,30]
[378786782,1755015068839,-400.0,0.00041643,30]
[378786783,1755015068849,-400.0,0.00041643,30]
[378786784,1755015068858,-400.0,0.00041643,30]
[378786785,1755015068868,-400.0,0.00041643,30]
[378786786,1755015068877,-400.0,0.00041643,30]
[378786787,1755015068887,-400.0,0.00041643,30]
[378786788,1755015068896,-400.0,0.00041643,30]
[378786789,1755015068906,-400.0,0.00041643,30]
[378786790,1755015068918,-2927.5233202,0.00041643,2]
[378786791,1755015068929,-400.0,0.00041643,30]
[378786792,1755015068939,-400.0,0.00041643,30]
[378786793,1755015068949,-400.0,0.00041643,30]
[378786794,1755015068958,-400.0,0.00041643,30]
[378786795,1755015068967,-400.0,0.00041643,30]
[378786796,1755015068977,-400.0,0.00041643,30]
[378786797,1755015068987,-400.0,0.00041643,30]
[378786798,1755015068997,-400.0,0.00041643,30]
[378786799,1755015069006,-400.0,0.00041643,30]
[378786800,1755015069015,-695.5,0.00041643,30]
[378786801,1755015069024,-400.0,0.00041643,30]